bitfinex-derivatives/quotes_BNBF0:USTF0_20250510
["timestamp","ask_amount","ask_price","bid_price","bid_amount"]
[1746875189234,0.30451597,656.78,655.88,0.27984991]
[1746875189434,0.30451597,656.78,655.89,0.91232274]
[1746875190135,0.30451597,656.78,655.9,0.27984991]
[1746875190330,0.30451597,656.78,655.91,0.91232274]
[1746875190635,0.30451597,656.78,655.92,0.27984991]
[1746875190930,0.30451597,656.78,655.93,0.91232274]
[1746875191532,0.30451597,656.78,655.79,0.51]
[1746875191533,0.30451597,656.78,655.94,0.91232274]
[1746875191730,0.30451597,656.78,655.95,0.91501217]
[1746875191933,0.30451597,656.78,655.79,0.51]
[1746875192135,0.30451597,656.78,655.8,0.91501031]
[1746875192335,0.30451597,656.78,655.81,0.91501031]
[1746875192535,0.30451597,656.78,655.82,0.91501031]
[1746875193034,0.30451597,656.78,655.83,0.27986238]
[1746875193234,0.30451597,656.78,655.84,0.91501031]
[1746875193534,0.30451597,656.78,655.85,0.27986238]
[1746875193834,0.30451597,656.78,655.86,0.91501031]
[1746875194436,0.30451597,656.78,655.87,0.27986238]
[1746875194629,0.30451597,656.78,655.88,0.91501031]
[1746875195034,0.30451597,656.78,655.89,0.27986238]
[1746875195334,0.30451597,656.78,655.9,0.91501031]
[1746875195533,0.30451597,656.78,655.91,0.91501031]
[1746875195731,0.30451597,656.78,655.92,0.91501031]
[1746875196136,0.30451597,656.78,655.93,0.91501031]
[1746875196337,0.30451597,656.78,655.94,0.91501031]
[1746875196537,0.30451597,656.78,655.82,0.26490671]
[1746875196736,0.30451597,656.78,655.83,0.91657717]
[1746875196938,0.30451597,656.78,655.84,0.91657717]
[1746875197139,0.30451597,656.78,655.85,0.91657717]
[1746875197840,0.30451597,656.78,655.84,0.448]
[1746875206146,0.26508631,656.77,655.84,0.448]
[1746875206448,0.30451597,656.78,655.84,0.448]
[1746875206747,0.25490752,656.76,655.84,0.448]
[1746875206948,0.25490752,656.77,655.84,0.448]
[1746875207347,0.26511862,656.75,655.84,0.448]
[1746875209450,0.30451597,656.78,655.84,0.448]
[1746875209950,0.26506611,656.77,655.84,0.448]
[1746875210552,0.25494945,656.76,655.84,0.448]
[1746875212952,0.26519741,656.75,655.84,0.448]
[1746875213351,0.25494945,656.74,655.84,0.448]
[1746875215153,0.25494945,656.74,655.85,0.455]
[1746875219053,0.26515195,656.73,655.85,0.455]
[1746875219449,0.25494945,656.72,655.85,0.455]
[1746875221955,0.26516609,656.71,655.85,0.455]
[1746875222556,0.25494945,656.7,655.85,0.455]
[1746875224758,0.26514791,656.69,655.85,0.455]
[1746875225051,0.25494945,656.68,655.85,0.455]
[1746875225656,0.26514791,656.69,655.85,0.455]
[1746875225957,0.2547047,656.68,655.85,0.455]
[1746875227755,0.26514791,656.69,655.85,0.455]
[1746875230364,0.30451597,656.78,655.85,0.455]
[1746875233959,0.26510953,656.77,655.85,0.455]
[1746875236460,0.30451597,656.78,655.85,0.455]
[1746875236968,0.26501767,656.77,655.85,0.455]
[1746875237263,0.26501767,656.77,655.86,0.358]
[1746875239766,0.30451597,656.78,655.86,0.358]
[1746875239963,0.26511054,656.76,655.86,0.358]
[1746875242567,0.30451597,656.78,655.86,0.358]
[1746875242767,0.26513983,656.75,655.86,0.358]
[1746875243669,0.25478429,656.74,655.86,0.358]
[1746875245773,0.26513983,656.75,655.86,0.358]
[1746875246972,0.25462266,656.74,655.86,0.358]
[1746875249173,0.25462266,656.77,655.86,0.358]
[1746875249768,0.26515296,656.76,655.86,0.358]
[1746875250273,0.25462266,656.75,655.86,0.358]
[1746875251776,0.25462266,656.77,655.86,0.358]
[1746875252977,0.26513175,656.76,655.86,0.358]
[1746875253378,0.25462266,656.75,655.86,0.358]
[1746875254380,0.26513175,656.76,655.86,0.358]
[1746875254581,0.30451597,656.78,655.86,0.358]
[1746875255081,0.25477249,656.77,655.86,0.358]
[1746875255381,0.25477249,656.77,655.85,0.455]
[1746875255783,0.26511054,656.76,655.85,0.455]
[1746875256079,0.25477249,656.75,655.85,0.455]
[1746875257179,0.25477249,656.75,655.86,0.436]
[1746875257983,0.25477249,656.77,655.86,0.436]
[1746875258785,0.26510246,656.76,655.86,0.436]
[1746875259987,0.25476153,656.75,655.86,0.436]
[1746875261086,0.25476153,656.77,655.86,0.436]
[1746875261883,0.2650318,656.76,655.86,0.436]
[1746875262286,0.25476153,656.75,655.86,0.436]
[1746875263386,0.2650318,656.76,655.86,0.436]
[1746875265089,0.25461921,656.75,655.86,0.436]
[1746875266586,1.96042709,657.71,655.86,0.436]
[1746875266786,0.25461696,657.7,655.86,0.436]
[1746875267087,0.25461696,657.69,655.86,0.436]
[1746875267287,0.30410388,657.67,655.86,0.436]
[1746875267490,0.30410388,657.67,655.87,0.334]
[1746875267689,0.51974265,657.66,655.87,0.334]
[1746875267985,0.30411775,657.64,655.87,0.334]
[1746875268388,0.25461696,657.63,655.87,0.334]
[1746875268585,0.30413162,657.61,655.87,0.334]
[1746875269090,1.96042709,657.59,655.87,0.334]
[1746875269489,0.25461696,657.58,655.87,0.334]
[1746875269690,0.51965279,657.58,655.87,0.334]
[1746875269890,0.25461696,657.57,655.87,0.334]
[1746875270390,0.25461696,657.56,655.87,0.334]
[1746875270589,0.304164,657.54,655.87,0.334]
[1746875270985,0.25461696,657.53,655.87,0.334]
[1746875271190,0.30417788,657.51,655.87,0.334]
[1746875271586,0.25461696,657.5,655.87,0.334]
[1746875271791,0.30419176,657.48,655.87,0.334]
[1746875272192,0.25461696,657.47,655.87,0.334]
[1746875272392,0.30420564,657.45,655.87,0.334]
[1746875272889,0.25460916,657.44,655.87,0.334]
[1746875273095,0.30421952,657.42,655.87,0.334]
[1746875273596,0.25460916,657.41,655.87,0.334]
[1746875273792,0.3042334,657.39,655.87,0.334]
[1746875273995,1.96042709,657.37,655.87,0.334]
[1746875274194,0.30425192,657.35,655.87,0.334]
[1746875274996,0.25460916,657.34,655.87,0.334]
[1746875275295,0.3042658,657.32,655.87,0.334]
[1746875275899,0.5196783,657.31,655.87,0.334]
[1746875276092,0.30427969,657.29,655.87,0.334]
[1746875276397,0.25460916,657.28,655.87,0.334]
[1746875276696,0.30429358,657.26,655.87,0.334]
[1746875277398,0.25460713,657.25,655.87,0.334]
[1746875277598,0.30430747,657.23,655.87,0.334]
[1746875278000,0.25466961,657.22,655.87,0.334]
[1746875278193,0.30432136,657.2,655.87,0.334]
[1746875278398,0.25466961,657.19,655.87,0.334]
[1746875278598,0.30433525,657.17,655.87,0.334]
[1746875278991,0.25466961,657.16,655.87,0.334]
[1746875279196,0.30434914,657.14,655.87,0.334]
[1746875279699,0.25466961,657.13,655.87,0.334]
[1746875279900,0.30436304,657.11,655.87,0.334]
[1746875280200,0.25466961,657.1,655.87,0.334]
[1746875280400,0.30437694,657.08,655.87,0.334]
[1746875280801,0.25466961,657.07,655.87,0.334]
[1746875280995,0.30439083,657.05,655.87,0.334]
[1746875281599,0.25466961,657.04,655.87,0.334]
[1746875281794,0.5197539,657.04,655.87,0.334]
[1746875281999,0.30440473,657.02,655.87,0.334]
[1746875282597,0.25466961,657.01,655.87,0.334]
[1746875282801,0.30441863,656.99,655.87,0.334]
[1746875283804,0.25466961,656.98,655.87,0.334]
[1746875284004,0.30443253,656.96,655.87,0.334]
[1746875284399,0.25466961,656.95,655.87,0.334]
[1746875284799,0.30444644,656.93,655.87,0.334]
[1746875285299,0.25466961,656.92,655.87,0.334]
[1746875285505,0.30446034,656.9,655.88,0.367]
[1746875285806,0.25466961,656.89,655.88,0.367]
[1746875286101,0.30446961,656.88,655.88,0.367]
[1746875287407,0.25466961,656.87,655.88,0.367]
[1746875287607,0.30448351,656.85,655.88,0.367]
[1746875290811,0.26508933,656.84,655.88,0.367]
[1746875291513,0.30449279,656.83,655.88,0.367]
[1746875297821,0.26510953,656.82,655.88,0.367]
[1746875298022,0.30450669,656.8,655.88,0.367]
[1746875299216,0.25469995,656.79,655.88,0.367]
[1746875299421,0.3045206,656.77,655.88,0.367]
[1746875299816,0.26512367,656.76,655.88,0.367]
[1746875300221,0.30453451,656.74,655.88,0.367]
[1746875300621,0.25470539,656.73,655.88,0.367]
[1746875300823,0.30454843,656.71,655.88,0.367]
[1746875301421,0.25470539,656.7,655.88,0.367]
[1746875301623,0.30456234,656.68,655.87,0.334]
[1746875304025,0.30456234,656.68,655.88,0.411]
[1746875305224,0.25470002,656.67,655.88,0.411]
[1746875305425,0.30457162,656.66,655.88,0.411]
[1746875305927,0.25470002,656.65,655.88,0.411]
[1746875306126,0.30458089,656.64,655.88,0.411]
[1746875306526,0.25470002,656.63,655.88,0.411]
[1746875306727,0.30459017,656.62,655.88,0.411]
[1746875308728,0.2546568,656.61,655.88,0.411]
[1746875308929,0.30459945,656.6,655.88,0.411]
[1746875309327,0.56976453,656.6,655.88,0.411]
[1746875309527,0.2546568,656.59,655.88,0.411]
[1746875309727,0.30460873,656.58,655.88,0.411]
[1746875312836,0.25509986,656.57,655.88,0.411]
[1746875313136,0.304618,656.56,655.88,0.411]
[1746875313832,0.25510674,656.55,655.88,0.411]
[1746875314032,0.30462728,656.54,655.88,0.411]
[1746875314933,0.56982671,656.54,655.88,0.411]
[1746875315935,0.56982671,656.54,655.89,0.412]
[1746875317036,0.30462728,656.54,655.89,0.412]
[1746875327647,0.30462728,656.54,655.9,0.475]
[1746875341461,0.30462728,656.54,655.91,0.469]
[1746875350861,0.30462728,656.54,655.92,0.91865766]
[1746875351061,0.30462728,656.54,655.91,0.469]
[1746875351259,0.30462728,656.54,655.92,0.91846175]
[1746875351459,0.30462728,656.54,655.91,0.469]
[1746875351657,0.30462728,656.54,655.92,0.91848906]
[1746875351961,0.30462728,656.54,655.91,0.469]
[1746875357267,0.30462728,656.54,655.92,0.504]
[1746875357959,0.30462728,656.54,655.93,0.91763668]
[1746875358164,0.30462728,656.54,655.92,0.504]
[1746875358366,0.30462728,656.54,655.93,0.91741436]
[1746875358560,0.30462728,656.54,655.92,0.504]
[1746875358765,0.30462728,656.54,655.93,0.91741471]
[1746875358962,0.30462728,656.54,655.94,0.91739743]
[1746875359266,0.30462728,656.54,655.92,0.504]
[1746875359463,0.30462728,656.54,655.93,0.9171824]
[1746875359661,0.30462728,656.54,655.94,0.9171824]
[1746875359868,0.30462728,656.54,655.92,0.504]
[1746875360362,0.30462728,656.54,655.93,0.91701717]
[1746875360566,0.30462728,656.54,655.92,0.504]
[1746875360766,0.30462728,656.54,655.93,0.91700004]
[1746875361068,0.30462728,656.54,655.92,0.504]
[1746875363269,0.30462728,656.54,655.93,0.9165429]
[1746875363469,0.30462728,656.54,655.94,0.9165429]
[1746875363670,0.30462728,656.54,655.92,0.504]
[1746875363964,0.30462728,656.54,655.93,0.91647379]
[1746875364168,0.30462728,656.54,655.94,0.91647379]
[1746875364365,0.30462728,656.54,655.95,0.91647379]
[1746875364568,0.30462728,656.54,655.92,0.504]
[1746875364770,0.30462728,656.54,655.93,0.9162457]
[1746875364970,0.30462728,656.54,655.94,0.9162457]
[1746875365169,0.30462728,656.54,655.95,0.9162457]
[1746875365367,0.30462728,656.54,655.93,0.332]
[1746875366675,0.30462728,656.54,655.94,0.27985383]
[1746875366871,0.304618,656.56,655.94,0.27985383]
[1746875371972,0.304618,656.56,655.95,0.355]
[1746875372273,0.304618,656.56,655.96,0.27984511]
[1746875372673,0.304618,656.56,655.95,0.355]
[1746875373068,0.304618,656.56,655.96,0.27984184]
[1746875379677,0.304618,656.56,655.95,0.62002776]
[1746875380580,0.304618,656.56,655.95,0.355]
[1746875381179,0.304618,656.56,655.95,0.62003381]
[1746875386881,0.304618,656.56,655.95,0.26503381]
[1746875387281,0.304618,656.56,655.96,0.27984503]
[1746875388779,0.304618,656.56,655.97,0.513]
[1746875389285,0.304618,656.56,655.98,0.27984503]
[1746875392682,0.304618,656.56,655.99,0.91596972]
[1746875392889,0.304618,656.56,656.0,0.91596972]
[1746875393189,0.304618,656.56,656.01,1.19581475]
[1746875393389,0.304618,656.56,656.02,1.19581475]
[1746875393591,0.304618,656.56,656.03,0.91596972]
[1746875393790,0.304618,656.56,656.04,0.91596972]
[1746875394090,0.304618,656.56,656.05,0.27984503]
[1746875394290,0.304618,656.56,656.06,0.91596972]
[1746875394690,0.304618,656.56,656.07,0.27984503]
[1746875394991,0.304618,656.56,656.08,0.91596972]
[1746875395390,0.304618,656.56,656.09,0.27984503]
[1746875395592,0.304618,656.56,656.1,0.91596972]
[1746875395791,0.304618,656.56,656.11,0.27984503]
[1746875395991,0.304618,656.56,656.12,0.91596972]
[1746875396386,0.304618,656.56,656.13,0.27984503]
[1746875396587,0.304618,656.56,656.14,0.91596972]
[1746875397187,0.304618,656.56,656.15,1.19697003]
[1746875397388,0.304618,656.56,656.16,0.27984503]
[1746875397591,0.304618,656.56,656.17,0.91713937]
[1746875397793,0.304618,656.56,656.18,0.91713937]
[1746875397991,0.304618,656.56,656.19,0.91713937]
[1746875398193,0.304618,656.56,656.2,0.91713937]
[1746875398389,0.304618,656.56,656.04,0.26498235]
[1746875398593,0.304618,656.56,656.05,0.91736139]
[1746875398786,0.304618,656.56,656.06,0.91736139]
[1746875398990,0.304618,656.56,656.07,0.91736139]
[1746875399187,0.304618,656.56,656.08,0.91736139]
[1746875399390,0.304618,656.56,656.09,0.91736139]
[1746875399694,0.304618,656.56,656.1,1.19712506]
[1746875399895,0.304618,656.56,656.11,1.19712506]
[1746875400090,0.304618,656.56,656.12,0.91736139]
[1746875400291,0.304618,656.56,656.13,0.27976367]
[1746875400491,0.304618,656.56,656.14,0.91736139]
[1746875400895,0.304618,656.56,656.15,0.91736139]
[1746875401195,0.304618,656.56,656.16,0.91736139]
[1746875401394,0.304618,656.56,656.17,0.91736139]
[1746875401594,0.304618,656.56,656.18,0.91736139]
[1746875401794,0.304618,656.56,656.19,0.91736139]
[1746875401995,0.304618,656.56,656.2,0.91736139]
[1746875402195,0.304618,656.56,655.97,0.513]
[1746875402196,0.304618,656.56,656.21,0.91736139]
[1746875402398,0.304618,656.56,655.97,0.513]
[1746875402592,0.304618,656.56,655.98,0.91771253]
[1746875402790,0.304618,656.56,655.99,0.91771253]
[1746875403296,0.304618,656.56,656.0,0.27976395]
[1746875403497,0.304618,656.56,656.01,0.91771253]
[1746875404097,0.304618,656.56,656.02,0.27976395]
[1746875404597,0.304618,656.56,656.03,0.91800271]
[1746875404796,0.304618,656.56,656.04,0.91800271]
[1746875404996,0.304618,656.56,656.05,1.19776666]
[1746875405297,0.304618,656.56,656.06,1.19776666]
[1746875405496,0.304618,656.56,656.07,0.91800271]
[1746875405692,0.304618,656.56,656.07,1.19776666]
[1746875405997,0.304618,656.56,656.08,0.91800271]
[1746875406197,0.304618,656.56,656.09,0.91829793]
[1746875406498,0.304618,656.56,656.1,0.91829793]
[1746875406795,0.304618,656.56,656.11,0.91829793]
[1746875406998,0.304618,656.56,656.11,0.27981483]
[1746875407696,0.304618,656.56,656.01,0.26498235]
[1746875407697,0.304618,656.56,656.02,0.27981483]
[1746875407897,0.304618,656.56,656.05,0.2650217]
[1746875408098,0.304618,656.56,656.06,1.19855198]
[1746875408300,0.304618,656.56,656.07,0.91873152]
[1746875408597,0.304618,656.56,656.07,1.19855198]
[1746875408799,0.304618,656.56,656.08,1.19855198]
[1746875408998,0.304618,656.56,656.09,0.91873152]
[1746875409599,0.304618,656.56,656.09,1.19855198]
[1746875409799,0.304618,656.56,656.1,0.91873152]
[1746875409993,0.304618,656.56,656.11,0.27982046]
[1746875410195,0.304618,656.56,656.12,0.9192937]
[1746875410396,0.304618,656.56,656.11,0.27982046]
[1746875410799,0.304618,656.56,656.06,0.27982046]
[1746875410999,0.304618,656.56,656.07,1.18432115]
[1746875411199,0.304618,656.56,656.08,0.91930348]
[1746875411800,0.304618,656.56,656.07,0.26501767]
[1746875412203,0.304618,656.56,656.08,0.76184593]
[1746875412701,0.304618,656.56,656.08,0.482]
[1746875428009,0.304618,656.56,656.09,0.91815418]
[1746875428211,0.304618,656.56,656.06,0.347]
[1746875428411,0.304618,656.56,656.07,0.91796251]
[1746875428608,0.304618,656.56,656.08,0.91796251]
[1746875428812,0.304618,656.56,656.09,0.91797765]
[1746875429015,0.304618,656.56,656.06,0.347]
[1746875429215,0.304618,656.56,656.07,0.91797074]
[1746875429409,0.304618,656.56,656.08,0.91797074]
[1746875429710,0.304618,656.56,656.09,0.91797074]
[1746875429914,0.304618,656.56,656.09,0.359]
[1746875446926,0.304618,656.56,656.06,0.347]
[1746875449627,0.304618,656.56,656.06,0.705]
[1746875460429,0.29087182,656.56,656.06,0.705]
[1746875462130,0.29087182,656.56,656.07,0.91734923]
[1746875462333,0.29087182,656.56,656.06,0.705]
[1746875462535,0.29087182,656.56,656.07,0.91735371]
[1746875462730,0.29087182,656.56,656.08,0.91735371]
[1746875463036,0.29087182,656.56,656.09,0.91735371]
[1746875463233,0.29087182,656.56,656.1,0.91754056]
[1746875463438,0.29087182,656.56,656.06,0.358]
[1746875463634,0.29087182,656.56,656.07,0.91754287]
[1746875463841,0.29087182,656.56,656.08,0.91754287]
[1746875464039,0.29087182,656.56,656.09,0.91754287]
[1746875464237,0.29087182,656.56,656.1,0.91754287]
[1746875464436,0.29087182,656.56,656.06,0.358]
[1746875464631,0.29087182,656.56,656.07,0.91777347]
[1746875464834,0.29087182,656.56,656.08,0.91777347]
[1746875465033,0.29087182,656.56,656.06,0.358]
[1746875465237,0.29087182,656.56,656.07,0.91803552]
[1746875465533,0.29087182,656.56,656.08,0.91803552]
[1746875465738,0.29087182,656.56,656.09,0.91803552]
[1746875465935,0.29087182,656.56,656.08,0.438]
[1746875466133,0.29087182,656.56,656.09,0.91829722]
[1746875466338,0.29087182,656.56,656.08,0.438]
[1746875466534,0.29087182,656.56,656.09,0.91829735]
[1746875466736,0.29087182,656.56,656.1,0.91829735]
[1746875466935,0.29087182,656.56,656.08,0.438]
[1746875467137,0.29087182,656.56,656.09,0.91829776]
[1746875467337,0.29087182,656.56,656.1,0.91829776]
[1746875467535,0.29087182,656.56,656.11,0.91829776]
[1746875467735,0.29087182,656.56,656.08,0.438]
[1746875467936,0.29087182,656.56,656.09,0.91834925]
[1746875468136,0.29087182,656.56,656.1,0.91834925]
[1746875468337,0.29087182,656.56,656.11,0.91834925]
[1746875468537,0.29087182,656.56,656.12,0.91839622]
[1746875468741,0.29087182,656.56,656.08,0.438]
[1746875468941,0.29087182,656.56,656.09,0.91835831]
[1746875469140,0.29087182,656.56,656.1,0.91835831]
[1746875469339,0.29087182,656.56,656.11,0.91835831]
[1746875469537,0.29087182,656.56,656.12,1.1981883]
[1746875469739,0.29087182,656.56,656.13,1.1981883]
[1746875469942,0.29087182,656.56,656.14,0.91835831]
[1746875470238,0.29087182,656.56,656.08,0.438]
[1746875470439,0.29087182,656.56,656.09,0.91842832]
[1746875471144,0.29087182,656.56,656.08,0.438]
[1746875471844,0.29087182,656.56,656.09,0.91849228]
[1746875472345,0.29087182,656.56,656.1,0.91849228]
[1746875472544,0.29087182,656.56,656.09,0.91849228]
[1746875473044,0.29087182,656.56,656.1,0.91849228]
[1746875473237,0.29087182,656.56,656.08,0.438]
[1746875473644,0.29087182,656.56,656.09,0.91855715]
[1746875474343,0.29087182,656.56,656.08,0.438]
[1746875474545,0.29087182,656.56,656.09,0.91852248]
[1746875475944,0.29087182,656.56,656.1,0.91853675]
[1746875476144,0.29087182,656.56,656.11,0.91853675]
[1746875476444,0.29087182,656.56,656.12,0.91853675]
[1746875476647,0.29087182,656.56,656.13,0.91853675]
[1746875476842,0.29087182,656.56,656.14,0.91853675]
[1746875477042,0.29087182,656.56,656.15,0.91853675]
[1746875477343,0.29087182,656.56,656.16,0.91853675]
[1746875477543,0.29087182,656.56,656.17,0.91853675]
[1746875477745,0.29087182,656.56,656.09,0.26499749]
[1746875478049,0.29087182,656.56,656.1,0.91828956]
[1746875478343,0.29087182,656.56,656.11,0.91828956]
[1746875478537,0.29087182,656.56,656.12,0.91828956]
[1746875478742,0.29087182,656.56,656.13,0.91828956]
[1746875478944,0.29087182,656.56,656.14,0.91828956]
[1746875479146,0.29087182,656.56,656.15,0.91828956]
[1746875479445,0.29087182,656.56,656.16,1.83636697]
[1746875479647,0.29087182,656.56,656.13,0.27981123]
[1746875479848,0.29087182,656.56,656.14,1.19789863]
[1746875480145,0.29087182,656.56,656.15,1.19789863]
[1746875480343,0.29087182,656.56,656.16,1.19789863]
[1746875480542,0.29087182,656.56,656.16,0.27981123]
[1746875480741,0.29087182,656.56,656.17,0.27981123]
[1746875480942,0.29087182,656.56,656.12,0.26499244]
[1746875481149,0.29087182,656.56,656.13,1.19781387]
[1746875481448,0.29087182,656.56,656.14,1.19781387]
[1746875481645,0.29087182,656.56,656.15,0.91800264]
[1746875481942,0.29087182,656.56,656.12,0.26499244]
[1746875482147,0.29087182,656.56,656.16,0.439]
[1746875488244,0.29087182,656.56,656.17,0.502]
[1746875496948,0.29087182,656.56,656.18,0.9184976]
[1746875497147,0.29087182,656.56,656.19,0.9184976]
[1746875497452,0.29087182,656.56,656.17,0.502]
[1746875497653,0.29087182,656.56,656.18,0.9183485]
[1746875497852,0.29087182,656.56,656.19,0.9183485]
[1746875498054,0.29087182,656.56,656.2,0.9183485]
[1746875498247,0.29087182,656.56,656.17,0.502]
[1746875498451,0.29087182,656.56,656.18,0.91831505]
[1746875498651,0.29087182,656.56,656.19,0.91831505]
[1746875498849,0.29087182,656.56,656.2,0.91831505]
[1746875499053,0.29087182,656.56,656.17,0.502]
[1746875499253,0.29087182,656.56,656.18,0.9181851]
[1746875499453,0.29087182,656.56,656.19,0.9181851]
[1746875499648,0.29087182,656.56,656.2,0.9181851]
[1746875499953,0.29087182,656.56,656.21,0.9181851]
[1746875500154,0.29087182,656.56,656.22,0.91779943]
[1746875500354,0.29087182,656.56,656.23,0.91779943]
[1746875500549,0.29087182,656.56,656.24,0.91779943]
[1746875500854,0.29087182,656.56,656.25,0.91779943]
[1746875501053,0.29087182,656.56,656.26,0.91779943]
[1746875501252,0.29087182,656.56,656.27,0.91779943]
[1746875501450,0.29087182,656.56,656.17,0.502]
[1746875501649,0.29087182,656.56,656.18,0.91735775]
[1746875501851,0.29087182,656.56,656.19,0.91735775]
[1746875502051,0.29087182,656.56,656.2,0.91735775]
[1746875502250,0.29087182,656.56,656.21,0.91735775]
[1746875502451,0.29087182,656.56,656.22,0.91735775]
[1746875502655,0.29087182,656.56,656.23,0.91735775]
[1746875502855,0.29087182,656.56,656.24,0.91735775]
[1746875503056,0.29087182,656.56,656.25,0.91735775]
[1746875503256,0.29087182,656.56,656.26,0.91735775]
[1746875503459,0.29087182,656.56,656.17,0.502]
[1746875503754,0.29087182,656.56,656.18,0.91706499]
[1746875503955,0.29087182,656.56,656.19,0.91706499]
[1746875504155,0.29087182,656.56,656.2,0.91706499]
[1746875504356,0.29087182,656.56,656.21,0.91706499]
[1746875504656,0.29087182,656.56,656.22,0.91706499]
[1746875504851,0.29087182,656.56,656.23,0.91706499]
[1746875505057,0.29087182,656.56,656.24,0.91706499]
[1746875505357,0.29087182,656.56,656.25,0.91706499]
[1746875505659,0.29087182,656.56,656.26,0.91706499]
[1746875505857,0.29087182,656.56,656.27,0.91706499]
[1746875506057,0.29087182,656.56,656.28,0.91720343]
[1746875506257,0.29087182,656.56,656.17,0.502]
[1746875506460,0.29087182,656.56,656.18,0.91720263]
[1746875506756,0.29087182,656.56,656.19,0.91720263]
[1746875506954,0.29087182,656.56,656.2,0.91720263]
[1746875507157,0.29087182,656.56,656.21,0.91720263]
[1746875507352,0.29087182,656.56,656.22,0.91720263]
[1746875507557,0.29087182,656.56,656.23,0.91720263]
[1746875507754,0.29087182,656.56,656.24,0.91720263]
[1746875507959,0.29087182,656.56,656.25,0.91720263]
[1746875508257,0.29087182,656.56,656.26,0.91720263]
[1746875508455,0.29087182,656.56,656.27,0.91720263]
[1746875508656,0.29087182,656.56,656.28,0.91720263]
[1746875508956,0.29087182,656.56,656.29,0.91720263]
[1746875509255,0.29087182,656.56,656.3,0.91720263]
[1746875509458,0.29087182,656.56,656.31,0.91720263]
[1746875509657,0.29087182,656.56,656.32,0.91720263]
[1746875509858,0.29087182,656.56,656.17,0.502]
[1746875510157,0.29087182,656.56,656.18,0.91646301]
[1746875510356,0.29087182,656.56,656.19,0.91646301]
[1746875510558,0.29087182,656.56,656.2,0.91646301]
[1746875510754,0.29087182,656.56,656.17,0.502]
[1746875510755,0.29087182,656.56,656.21,0.91646301]
[1746875510956,0.29087182,656.56,656.22,0.91646301]
[1746875511155,0.29087182,656.56,656.23,0.91646301]
[1746875511354,0.29087182,656.56,656.24,0.91646301]
[1746875511561,0.29087182,656.56,656.25,0.91646301]
[1746875511759,0.29087182,656.56,656.26,0.91646301]
[1746875511959,0.29087182,656.56,656.27,0.91646301]
[1746875512159,0.29087182,656.56,656.28,0.91646301]
[1746875512362,0.29087182,656.56,656.29,0.91646301]
[1746875512559,0.29087182,656.56,656.3,0.91646301]
[1746875512862,0.29087182,656.56,656.21,0.264941]
[1746875513063,0.29087182,656.56,656.22,0.91614065]
[1746875513362,0.29087182,656.56,656.23,0.91614065]
[1746875513663,0.29087182,656.56,656.24,0.91614065]
[1746875513863,0.29087182,656.56,656.25,0.91614065]
[1746875514064,0.29087182,656.56,656.26,0.91614065]
[1746875514259,0.29087182,656.56,656.27,0.91611095]
[1746875514461,0.29087182,656.56,656.28,0.91611095]
[1746875514765,0.29087182,656.56,656.29,1.19583496]
[1746875514963,0.29087182,656.56,656.3,0.91611095]
[1746875515263,0.29087182,656.56,656.21,0.264941]
[1746875515562,0.29087182,656.56,656.22,0.91607101]
[1746875515759,0.29087182,656.56,656.23,0.91607101]
[1746875516060,0.29087182,656.56,656.24,0.91607101]
[1746875516263,0.29087182,656.56,656.25,0.91607101]
[1746875516466,0.29087182,656.56,656.26,0.91607101]
[1746875516760,0.29087182,656.56,656.27,0.91607101]
[1746875516960,0.29087182,656.56,656.28,0.91607101]
[1746875517159,0.29087182,656.56,656.29,0.91607101]
[1746875517360,0.29087182,656.56,656.3,0.91607101]
[1746875517562,0.29087182,656.56,656.31,0.27972622]
[1746875517764,0.29087182,656.56,656.24,0.27972622]
[1746875517962,0.29087182,656.56,656.25,0.91599573]
[1746875518166,0.29087182,656.56,656.26,0.91599573]
[1746875518369,0.29087182,656.56,656.27,1.19572195]
[1746875518563,0.29087182,656.56,656.28,1.19572195]
[1746875518766,0.29087182,656.56,656.29,0.91599573]
[1746875519167,0.29087182,656.56,656.3,0.27972622]
[1746875519368,0.29087182,656.56,656.31,0.91599573]
[1746875520069,0.29087182,656.56,656.32,0.27972622]
[1746875520270,0.29087182,656.56,656.33,0.91599573]
[1746875520470,0.29087182,656.56,656.34,0.27972622]
[1746875520669,0.29087182,656.56,656.35,0.91599573]
[1746875520863,0.29087182,656.56,656.36,0.91599573]